bitfinex/quotes_ETHUSD_20251122
["timestamp","ask_amount","ask_price","bid_price","bid_amount"]
[1763774476985,0.6805,2774.5,2774.4,0.001]
[1763774478263,0.4529,2774.8,2774.4,0.001]
[1763774479272,0.2299,2774.5,2774.4,0.001]
[1763774479799,0.6806,2774.5,2774.4,0.001]
[1763774480568,0.6826,2774.5,2774.4,0.001]
[1763774482898,1.24840354,2774.5,2774.4,0.001]
[1763774483264,0.6826,2774.5,2774.4,0.001]
[1763774484386,0.405504,2774.4,2774.1,0.001]
[1763774484586,5.09929795,2774.1,2773.8,0.001]
[1763774484900,0.99881406,2774.3,2773.8,0.001]
[1763774484901,0.4124,2773.9,2773.8,0.001]
[1763774485095,0.2222,2773.9,2773.8,0.001]
[1763774485511,0.1924,2774.1,2773.8,0.001]
[1763774485712,0.4735,2773.9,2773.8,0.001]
[1763774486084,0.6769,2773.9,2773.8,0.001]
[1763774486519,0.4552,2774.4,2773.8,0.458]
[1763774486821,0.47110015,2774.4,2773.8,0.458]
[1763774487021,0.4552,2774.4,2773.8,0.458]
[1763774487322,0.47110015,2774.3,2773.8,0.458]
[1763774487537,0.47110015,2774.3,2773.8,0.001]
[1763774488401,0.4552,2774.3,2773.8,0.001]
[1763774488920,0.002,2774.5,2773.8,0.001]
[1763774489111,0.002,2774.5,2773.9,0.4817]
[1763774490290,0.56578893,2774.4,2773.9,0.4817]
[1763774491904,1.02098893,2774.4,2773.8,0.001]
[1763774492430,0.77754947,2774.3,2773.8,0.001]
[1763774492794,0.77754947,2774.3,2773.8,0.4827]
[1763774493000,0.56578893,2774.4,2774.2,0.457]
[1763774493233,0.56578893,2774.4,2773.8,0.001]
[1763774493440,1.02098893,2774.4,2773.8,0.001]
[1763774493846,0.77766444,2774.3,2773.8,0.001]
[1763774494340,0.4552,2774.3,2773.8,0.001]
[1763774494545,0.56578893,2774.4,2774.2,0.457]
[1763774494713,0.002,2774.5,2774.3,0.457]
[1763774494908,0.77970012,2774.5,2774.4,0.457]
[1763774495132,0.002,2774.5,2774.4,1.1398]
[1763774495306,0.002,2774.5,2774.0,0.4555]
[1763774495506,0.7441,2774.5,2773.8,0.001]
[1763774496835,0.27890015,2774.4,2773.8,0.001]
[1763774497159,0.0026,2773.9,2773.8,0.001]
[1763774497441,1.04056452,2774.4,2773.8,0.001]
[1763774497442,0.77756452,2774.3,2773.8,0.001]
[1763774497740,0.77756452,2774.3,2773.8,0.4965]
[1763774497908,0.4979,2774.2,2773.8,0.4965]
[1763774498113,0.4979,2774.2,2774.1,0.001]
[1763774498635,0.7423,2774.2,2774.1,0.001]
[1763774498994,0.75820015,2774.2,2774.1,0.001]
[1763774499732,0.7423,2774.2,2774.1,0.001]
[1763774502732,3.41354751,2774.2,2774.1,0.001]
[1763774502950,3.37401036,2774.2,2774.1,0.001]
[1763774503242,3.35811021,2774.2,2774.1,0.001]
[1763774503828,3.02092514,2774.2,2774.1,0.001]
[1763774505321,3.3737157,2774.2,2774.1,0.001]
[1763774505667,3.35779741,2774.2,2774.1,0.001]
[1763774506276,3.02092514,2774.2,2774.1,0.001]
[1763774506430,3.01842514,2774.2,2774.1,0.001]
[1763774506631,2.42407734,2774.2,2774.1,0.001]
[1763774506836,1.92867734,2774.2,2774.1,0.001]
[1763774507032,1.15139264,2774.2,2774.1,0.001]
[1763774508129,1.64679264,2774.2,2774.1,0.001]
[1763774508962,2.42240938,2774.2,2774.1,0.001]
[1763774509341,2.76175732,2774.2,2774.1,0.001]
[1763774510074,2.26635732,2774.2,2774.1,0.001]
[1763774510237,0.002,2774.5,2774.1,1.1349]
[1763774510451,0.002,2774.5,2774.4,0.4955]
[1763774510831,0.002,2774.5,2774.4,0.951]
[1763774512583,0.002,2774.5,2774.4,1.356504]
[1763774513903,0.002,2774.5,2774.4,6.96058572]
[1763774514056,0.002,2774.8,2774.5,0.405504]
[1763774514235,0.002,2774.8,2774.7,0.901004]
[1763774514631,0.002,2774.8,2774.7,1.356504]
[1763774515063,0.002,2775.1,2774.7,1.356504]
[1763774515276,0.002,2775.1,2775.0,1.80799664]
[1763774515480,0.002,2775.1,2775.0,2.50405521]
[1763774515636,0.002,2775.1,2775.0,2.95955521]
[1763774517257,0.002,2775.1,2775.0,2.05256257]
[1763774517453,0.002,2775.1,2775.0,2.95955521]
[1763774518814,0.002,2775.8,2775.1,0.405504]
[1763774518956,0.002,2775.8,2775.7,0.6784]
[1763774519491,0.002,2775.8,2775.7,1.539404]
[1763774520179,0.002,2775.9,2775.7,1.539404]
[1763774520496,0.002,2775.9,2775.8,0.951]
[1763774520965,0.002,2775.9,2775.8,1.356504]
[1763774521160,0.002,2775.9,2775.8,1.60114366]
[1763774522776,0.002,2775.9,2775.8,1.19563966]
[1763774522978,0.002,2775.9,2775.8,0.951]
[1763774523188,0.002,2775.9,2775.5,0.6384]
[1763774523899,0.002,2775.9,2775.5,0.1829]
[1763774524091,0.1966,2775.9,2775.3,0.1829]
[1763774524296,0.002,2775.9,2775.8,0.4955]
[1763774524593,0.002,2775.9,2775.8,1.356504]
[1763774524795,0.002,2775.9,2775.8,1.58285366]
[1763774525415,0.002,2775.9,2775.8,1.17734966]
[1763774525615,0.002,2775.9,2775.8,0.72184966]
[1763774525915,0.002,2775.9,2775.4,0.863604]
[1763774526220,0.6572,2775.9,2775.3,0.1829]
[1763774526378,0.6572,2775.9,2775.3,0.641]
[1763774527015,0.6572,2775.9,2775.1,0.1808]
[1763774527311,0.2813,2775.8,2775.1,0.1808]
[1763774528503,0.29720015,2775.8,2775.1,0.1808]
[1763774528701,0.2813,2775.8,2775.1,0.1808]
[1763774528938,0.002,2775.9,2775.2,0.49413343]
[1763774529103,0.002,2775.9,2775.2,0.4581]
[1763774529311,0.1897,2775.9,2775.2,0.4581]
[1763774529479,0.6664,2775.9,2775.2,0.4581]
[1763774529683,0.6664,2775.9,2775.1,0.1808]
[1763774529882,0.6664,2775.9,2775.2,0.4581]
[1763774529883,0.002,2775.9,2775.2,0.4581]
[1763774531429,0.002,2775.9,2775.3,0.405504]
[1763774531587,0.002,2775.9,2775.8,0.4967]
[1763774531787,0.002,2775.9,2775.4,0.4581]
[1763774532484,0.002,2775.9,2775.8,0.4967]
[1763774533722,0.002,2775.9,2775.2,0.405504]
[1763774533723,0.2741,2775.9,2775.2,0.405504]
[1763774533924,0.4618,2775.9,2775.1,0.1818]
[1763774534128,0.49060015,2775.8,2775.1,0.001]
[1763774534327,0.4747,2775.8,2775.1,0.001]
[1763774535242,0.1897,2775.9,2775.1,0.001]
[1763774535444,0.1897,2775.9,2775.2,0.4581]
[1763774535818,0.56545878,2775.8,2775.2,0.4581]
[1763774538154,0.56545878,2775.8,2775.7,0.4967]
[1763774538454,0.56545878,2775.8,2775.7,0.9548]
[1763774538758,0.002,2775.9,2775.7,0.9548]
[1763774538920,0.002,2775.9,2775.8,0.4967]
[1763774540752,0.002,2775.9,2775.8,0.9548]
[1763774542049,0.002,2775.9,2775.3,0.405504]
[1763774542050,0.6572,2775.9,2775.3,0.405504]
[1763774542419,0.6572,2775.9,2775.2,0.4581]
[1763774542420,0.2813,2775.4,2775.1,0.001]
[1763774542618,0.2721,2775.2,2775.1,0.001]
[1763774543037,0.7468,2775.2,2775.1,0.001]
[1763774544361,0.77550453,2775.7,2775.1,0.6785]
[1763774544540,0.775261,2775.8,2775.1,0.6785]
[1763774544721,0.4767,2775.7,2775.1,0.4977]
[1763774545141,0.4767,2775.7,2775.1,0.6785]
[1763774545356,0.4767,2775.7,2775.1,0.001]
[1763774546425,0.01590015,2775.6,2775.1,0.001]
[1763774546826,0.4767,2775.8,2775.1,0.001]
[1763774547024,0.4767,2775.8,2775.1,0.1818]
[1763774548679,0.4767,2775.7,2775.1,0.001]
[1763774549181,0.01590015,2775.6,2775.1,0.001]
[1763774549380,0.4767,2775.6,2775.1,0.001]
[1763774549877,0.2721,2775.2,2775.1,0.001]
[1763774550056,0.4767,2775.8,2775.1,0.1818]
[1763774550258,0.4767,2775.8,2775.1,1.1366]
[1763774550866,0.4767,2775.8,2775.1,0.6785]
[1763774551175,0.4767,2775.8,2775.1,0.4977]
[1763774551383,0.4767,2775.8,2775.1,0.6785]
[1763774551583,0.2721,2775.2,2775.1,0.001]
[1763774552173,0.56549784,2775.4,2775.1,0.001]
[1763774553687,0.2741,2775.2,2775.1,0.001]
[1763774554069,0.7468,2775.2,2775.1,0.001]
[1763774554786,0.2741,2775.2,2775.1,0.001]
[1763774554947,0.77593984,2775.8,2775.1,1.1198]
[1763774555148,0.1897,2775.9,2775.2,0.9324]
[1763774555600,0.1897,2775.9,2775.2,0.4729]
[1763774555802,0.1897,2775.9,2775.3,0.4554]
[1763774555803,0.002,2775.9,2775.3,0.4554]
[1763774556306,0.002,2775.9,2775.8,0.499]
[1763774556603,0.002,2775.9,2775.4,0.405504]
[1763774557012,0.002,2775.9,2775.5,0.4554]
[1763774561687,0.002,2775.9,2775.8,0.499]
[1763774562833,0.9383,2775.9,2775.1,0.001]
[1763774563124,0.01590015,2775.8,2775.1,0.189]
[1763774563284,0.01590015,2775.8,2775.1,0.63464]
[1763774564112,0.47040015,2775.8,2775.1,0.63464]
[1763774565015,0.2951,2775.2,2775.1,0.001]
[1763774565184,0.4529,2775.5,2775.1,0.001]
[1763774566544,0.01590015,2775.4,2775.1,0.001]
[1763774567013,0.47040015,2775.4,2775.1,0.001]
[1763774567206,0.4545,2775.4,2775.1,0.001]
[1763774567408,0.2951,2775.2,2775.1,0.001]
[1763774568820,0.56551812,2775.4,2775.1,0.5]
[1763774569190,1.02001812,2775.4,2775.1,0.001]
[1763774570642,0.56551812,2775.4,2775.1,0.001]
[1763774572715,0.4545,2775.7,2775.1,0.001]
[1763774574755,0.2951,2775.2,2775.1,0.001]
[1763774575450,0.748,2775.2,2775.1,0.001]
[1763774576047,0.77606403,2775.7,2775.1,0.001]
[1763774576048,0.01590015,2775.6,2775.1,0.001]
[1763774576218,0.4545,2775.6,2775.1,0.5]
[1763774576526,0.2951,2775.2,2775.1,0.001]
[1763774577722,0.748,2775.2,2775.1,0.001]
[1763774580640,1.34854941,2775.2,2775.1,0.001]
[1763774580840,2.12435612,2775.2,2775.1,0.001]
[1763774581655,0.0045,2775.1,2774.9,0.001]
[1763774581860,0.30650015,2775.0,2774.9,0.001]
[1763774582371,0.76100015,2775.0,2774.9,0.001]
[1763774582530,1.14984543,2775.0,2774.9,0.001]
[1763774582734,7.69295436,2775.0,2774.9,0.001]
[1763774582936,7.69295436,2775.0,2774.8,0.001]
[1763774582937,20.424497,2774.9,2774.8,0.001]
[1763774583159,19.78930129,2774.9,2774.8,0.001]
[1763774583361,22.04647548,2774.9,2774.8,0.001]
[1763774583758,21.98950348,2774.9,2774.8,0.001]
[1763774583960,21.98950348,2774.9,2774.6,0.001]
[1763774584177,5.09899964,2774.7,2774.6,0.001]
[1763774584553,5.55349964,2774.7,2774.6,0.001]
[1763774584864,4.77933805,2774.7,2774.6,0.001]
[1763774585240,2.08992305,2774.7,2774.6,0.001]
[1763774585448,1.65719264,2774.7,2774.6,0.001]
[1763774585953,0.2957,2774.7,2774.6,0.001]
[1763774586464,0.4893,2775.2,2774.6,0.4605]
[1763774586670,0.1801,2775.1,2774.6,0.4605]
[1763774587046,0.1801,2775.1,2774.6,0.9423]
[1763774587859,0.4893,2775.2,2774.6,0.4605]
[1763774588061,0.01590015,2775.6,2774.6,0.4605]
[1763774588062,0.4893,2775.5,2774.7,0.4818]
[1763774589145,0.4893,2775.8,2774.7,0.4818]
[1763774590256,0.1886,2775.9,2774.7,0.4818]
[1763774591387,0.6779,2775.9,2774.7,0.4818]
[1763774591761,0.4893,2775.8,2774.7,0.4818]
[1763774593098,0.002,2775.9,2774.8,0.405504]
[1763774593302,0.002,2775.9,2775.7,0.4595]
[1763774593496,0.002,2775.9,2775.8,0.4595]
[1763774593698,0.002,2775.9,2775.8,0.9413]
[1763774593873,0.9508,2775.9,2775.3,0.1952]
[1763774594073,0.9508,2775.9,2775.0,0.4818]
[1763774594074,0.0049,2775.7,2775.1,0.1952]
[1763774594296,0.0049,2775.7,2775.1,0.677]
[1763774594500,0.6693,2775.9,2775.1,0.677]
[1763774594700,0.6693,2775.9,2775.2,0.4818]
[1763774595567,0.1821,2775.9,2775.2,0.4818]
[1763774596562,0.50520015,2775.8,2774.8,0.4818]
[1763774596762,0.01590015,2775.7,2774.8,0.4818]
[1763774597395,0.50520015,2775.7,2774.8,0.4818]
[1763774597603,0.50520015,2775.7,2774.6,0.4828]
[1763774597766,0.1821,2775.9,2774.7,0.4818]
[1763774597962,0.6714,2775.9,2774.7,0.4818]
[1763774598382,0.4893,2775.8,2774.7,0.4818]
[1763774598999,0.01590015,2775.7,2774.7,0.4818]
[1763774599199,0.4893,2775.8,2774.7,0.4818]
[1763774599902,0.1821,2775.9,2774.7,0.4818]
[1763774600105,0.002,2775.9,2774.8,0.405504]
[1763774600571,0.002,2775.9,2774.9,0.4818]
[1763774601406,0.002,2775.9,2775.8,0.4595]
[1763774601582,0.6714,2775.9,2774.9,0.4818]
[1763774601904,0.6714,2775.9,2774.6,0.001]
[1763774601905,0.1821,2775.9,2775.1,0.1952]
[1763774602206,0.002,2775.9,2775.2,0.4818]
[1763774604316,0.6714,2775.9,2775.2,0.4818]
[1763774604509,0.4893,2775.8,2775.1,0.1952]
[1763774605010,0.002,2775.9,2775.7,0.4595]
[1763774605199,0.002,2775.9,2775.8,0.4595]
[1763774605387,0.002,2775.9,2775.1,0.1952]
[1763774605589,0.1821,2775.9,2775.2,0.4818]
[1763774606381,0.1821,2775.9,2775.1,0.1952]
[1763774606580,0.01590015,2775.8,2775.1,0.677]
[1763774607013,0.01590015,2775.8,2775.2,0.4818]
[1763774607209,0.56546873,2775.7,2775.2,0.4818]
[1763774607527,0.01590015,2775.6,2775.2,0.4818]
[1763774607809,0.01590015,2775.8,2775.2,0.4818]
[1763774608010,0.01590015,2775.8,2775.1,0.1952]
[1763774608313,0.50520015,2775.8,2775.1,0.1952]
[1763774608518,0.50520015,2775.8,2774.6,0.4828]
[1763774608519,0.4893,2775.8,2774.6,0.4828]
[1763774608832,0.0028,2775.1,2774.6,0.001]
[1763774609303,0.4921,2775.1,2774.6,0.001]
[1763774609617,0.4893,2775.4,2774.6,0.4828]
[1763774610113,0.01590015,2775.3,2774.6,0.001]
[1763774610613,0.4893,2775.4,2774.6,0.001]
[1763774610930,0.50520015,2775.3,2774.6,0.001]
[1763774611514,0.2815,2774.7,2774.6,0.001]
[1763774611742,0.4616,2774.7,2774.6,0.001]
[1763774612055,0.2815,2774.7,2774.6,0.001]
[1763774612529,0.1801,2774.9,2774.6,0.001]
[1763774612926,0.6694,2774.9,2774.6,0.001]
[1763774613532,0.78746255,2775.7,2774.6,0.001]
[1763774613533,0.1801,2775.1,2774.6,0.001]
[1763774614031,0.4893,2775.0,2774.6,0.001]
[1763774615332,0.1801,2775.1,2774.6,0.001]
[1763774615498,0.4805,2775.0,2774.6,0.001]
[1763774616096,0.2903,2774.7,2774.6,0.001]
[1763774619840,0.7689,2774.7,2774.6,0.001]
[1763774620452,1.67589264,2774.7,2774.6,0.001]
[1763774620659,0.7689,2774.7,2774.6,0.001]
[1763774622744,0.2903,2774.7,2774.6,0.001]
[1763774622944,0.7689,2774.7,2774.6,0.001]
[1763774623144,0.2903,2774.7,2774.6,0.001]
[1763774623839,0.7689,2774.7,2774.6,0.001]
[1763774625233,3.75229564,2774.7,2774.6,0.001]
[1763774625434,4.12911522,2774.7,2774.6,0.001]
[1763774626137,2.05271222,2774.7,2774.6,0.001]
[1763774626463,1.19729264,2774.7,2774.6,0.001]
[1763774628529,0.1801,2775.1,2774.6,0.001]
[1763774628861,0.2903,2774.7,2774.6,0.001]
[1763774629058,0.7689,2774.7,2774.6,0.001]
[1763774629634,1.33461497,2774.7,2774.6,0.001]
[1763774630573,2.24160761,2774.7,2774.6,0.001]
[1763774630865,2.46576837,2774.7,2774.6,0.001]
[1763774633860,1.9000534,2774.7,2774.6,0.001]
[1763774635257,1.1311534,2774.7,2774.6,0.4608]
[1763774635468,1.19729264,2774.7,2774.6,0.001]
[1763774637471,1.19909264,2774.7,2774.6,0.001]
[1763774638002,1.76481628,2774.7,2774.6,0.001]
[1763774638276,1.98916791,2774.7,2774.6,0.001]
[1763774640778,6.29644229,2774.7,2774.6,0.001]
[1763774641181,7.07114305,2774.7,2774.6,0.001]
[1763774641482,0.56572364,2774.7,2774.6,0.9293]
[1763774641679,0.002,2774.8,2774.6,4.75987438]
[1763774641908,0.002,2774.8,2774.7,0.9283]
[1763774642107,0.002,2774.8,2774.7,1.40438744]
[1763774643175,0.002,2774.8,2774.7,0.9283]
[1763774643372,0.002,2774.8,2774.7,1.333804]
[1763774643600,0.002,2775.1,2774.8,0.405504]
[1763774643907,0.002,2775.1,2775.0,0.4598]
[1763774644106,0.002,2775.1,2775.0,0.9283]
[1763774644310,0.002,2775.1,2775.0,1.53071891]
[1763774644815,0.002,2775.1,2775.0,1.93622291]
[1763774645315,0.002,2775.4,2775.1,0.405504]
[1763774645545,0.002,2775.4,2775.3,1.074004]
[1763774646015,0.002,2775.4,2775.3,1.528604]
[1763774648387,0.002,2775.4,2775.3,1.1231]
[1763774648885,0.002,2775.4,2775.3,0.4754]
[1763774649089,0.002,2775.4,2775.3,0.93]
[1763774649514,0.002,2775.4,2775.1,0.1931]
[1763774649731,0.002,2775.4,2775.1,0.6477]
[1763774650242,0.002,2775.4,2775.3,0.4754]
[1763774650414,0.002,2775.4,2774.8,0.4546]
[1763774651314,0.002,2775.4,2774.6,0.001]
[1763774651315,0.4624,2775.3,2774.6,0.001]
[1763774651639,0.2952,2774.7,2774.6,0.001]
[1763774651823,0.4624,2775.3,2774.6,0.001]
[1763774652145,0.4624,2775.3,2774.6,0.4764]
[1763774652507,0.4624,2775.3,2775.0,0.001]
[1763774652943,0.2952,2775.1,2775.0,0.001]
[1763774653330,0.756,2775.1,2775.0,0.001]
[1763774656936,0.706,2775.1,2775.0,0.001]
[1763774661554,1.27174074,2775.1,2775.0,0.001]
[1763774662549,0.81094074,2775.1,2775.0,0.001]
[1763774662736,1.27174074,2775.1,2775.0,0.001]
[1763774663729,9.24919451,2775.1,2775.0,0.001]
[1763774664040,7.79403796,2775.1,2775.0,0.001]
[1763774664521,3.10365283,2775.1,2775.0,0.001]
[1763774664861,2.17873338,2775.1,2775.0,0.001]
[1763774665367,0.56574074,2775.1,2775.0,0.4764]
[1763774665550,0.56574074,2775.1,2775.0,0.001]
[1763774665551,0.4841,2775.1,2775.0,0.001]
[1763774665732,0.50000015,2775.1,2775.0,0.001]
[1763774666137,0.1747,2775.3,2775.0,0.001]
[1763774667252,0.002,2775.4,2775.0,0.4556]
[1763774667567,0.002,2775.4,2775.2,0.4754]
[1763774668264,0.002,2775.4,2775.0,0.001]
[1763774668668,0.5676371,2775.4,2775.0,0.4556]
[1763774668961,0.5676371,2775.4,2775.3,0.4754]
[1763774670357,0.5676371,2775.4,2775.3,0.93]
[1763774671332,0.002,2775.4,2775.3,0.93]
[1763774672552,0.002,2775.4,2775.1,0.1931]
[1763774672750,0.2211,2775.4,2775.0,0.001]
[1763774673359,0.2211,2775.4,2775.0,0.4556]
[1763774674034,0.01590015,2775.3,2775.0,0.4556]
[1763774674235,0.01590015,2775.3,2775.0,0.001]
[1763774674771,0.002,2775.4,2775.0,0.001]
[1763774674976,0.002,2775.4,2775.3,0.4871]
[1763774675340,0.002,2775.4,2775.3,0.9695]
[1763774681163,0.002,2775.4,2775.3,0.4871]
[1763774681366,0.002,2775.4,2775.1,0.1911]
[1763774681761,0.002,2775.4,2775.3,0.4787]
[1763774682402,0.002,2775.4,2775.3,0.9548]
[1763774686901,0.002,2775.4,2775.3,4.78038024]
[1763774689271,0.002,2775.4,2775.3,0.9548]
[1763774689500,0.002,2775.4,2775.3,4.78038024]
[1763774689674,0.002,2775.4,2775.3,5.70331026]
[1763774690681,0.002,2775.4,2775.3,6.6103029]
[1763774690883,0.002,2775.4,2775.3,2.78472266]
[1763774691904,0.002,2775.4,2775.3,3.19022666]
[1763774695534,0.002,2775.7,2775.4,1.31249664]
[1763774695732,0.002,2775.7,2775.6,4.5727642]
[1763774696027,0.002,2776.1,2775.8,1.79119664]
[1763774696328,0.002,2776.1,2776.0,1.31249664]
[1763774696488,0.002,2776.1,2776.0,2.43347415]
[1763774696690,0.002,2776.1,2776.0,2.90957415]
[1763774698022,0.002,2776.1,2776.0,2.9455972]
[1763774698906,0.002,2776.1,2776.0,8.03649326]
[1763774699219,0.002,2776.1,2776.0,8.00047021]
[1763774700259,0.001,2776.2,2776.1,0.90699264]
[1763774700394,0.4548,2778.2,2776.4,1.31249664]
[1763774700736,0.47070015,2778.1,2776.8,0.90699264]
[1763774700945,0.47070015,2778.1,2776.9,0.405504]
[1763774701634,0.4548,2778.1,2777.0,0.405504]
[1763774701881,0.01590015,2778.0,2777.0,0.405504]
[1763774702125,0.5194,2777.9,2777.0,0.405504]
[1763774702727,0.01590015,2777.8,2776.6,0.4761]
[1763774702917,0.5194,2777.9,2776.7,0.405504]
[1763774703121,0.4548,2777.8,2776.7,0.405504]
[1763774705333,0.0646,2777.9,2776.9,1.31249664]
[1763774705533,0.0646,2777.9,2777.1,0.405504]
[1763774706036,0.0646,2777.9,2777.2,0.683]
[1763774706400,0.0646,2777.9,2777.3,0.4966]
[1763774709438,0.002,2778.0,2777.4,0.405504]
[1763774709646,0.002,2778.0,2777.4,0.902104]
[1763774710964,0.002,2778.0,2777.2,0.1864]
[1763774710965,0.002,2778.0,2777.9,0.905504]
[1763774711110,0.002,2778.0,2777.9,1.402104]
[1763774713112,0.002,2778.0,2777.9,9.08495164]
[1763774713309,0.002,2778.0,2777.9,6.05331507]
[1763774713863,0.002,2778.0,2777.9,3.30829107]
[1763774714073,0.002,2778.0,2777.9,2.30909664]
[1763774714371,0.002,2778.0,2777.9,4.38547864]
[1763774714921,0.002,2778.0,2777.9,2.30909664]
[1763774715323,0.002,2778.0,2777.9,4.32968664]
[1763774715527,0.002,2778.3,2777.9,4.32968664]
[1763774715528,0.002,2778.3,2778.2,0.405504]
[1763774715729,0.002,2778.3,2778.2,16.37987356]
[1763774715947,0.002,2778.3,2778.2,15.73017356]
[1763774716856,0.002,2778.3,2778.2,8.99667856]
[1763774717231,0.002,2778.3,2778.2,11.53067856]
[1763774718068,0.002,2778.3,2778.2,15.34942256]
[1763774718239,0.002,2778.3,2778.2,14.50295056]
[1763774718434,0.002,2778.3,2778.2,8.99667856]
[1763774718871,0.002,2778.3,2778.2,12.88795056]
[1763774719070,0.002,2778.3,2778.2,8.59117456]
[1763774719256,0.002,2778.3,2778.2,1.183]
[1763774719771,0.002,2778.3,2778.2,1.588504]
[1763774720072,0.002,2778.3,2778.2,7.1808887]
[1763774720364,0.002,2778.3,2778.2,7.5863927]
[1763774721269,0.002,2778.3,2778.2,7.0897927]
[1763774721444,0.002,2778.3,2778.2,7.79877197]
[1763774721646,0.002,2778.3,2778.2,1.40699264]
[1763774721861,0.002,2778.3,2778.2,0.90699264]
[1763774722062,0.002,2778.3,2778.2,1.31249664]
[1763774722760,0.7368,2778.3,2777.5,5.686775]
[1763774722938,0.0046,2778.0,2777.1,0.4966]
[1763774723137,0.0046,2778.0,2777.2,0.683]
[1763774723138,0.1894,2777.9,2777.2,0.683]
[1763774723569,0.4576,2777.8,2777.2,0.66808887]
[1763774724368,0.4576,2777.8,2777.3,0.405504]
[1763774724675,0.1894,2777.9,2777.3,0.4966]
[1763774724876,0.1894,2777.9,2777.4,0.405504]
[1763774725372,0.647,2777.9,2777.4,0.405504]
[1763774725940,0.279,2777.5,2777.3,0.405504]
[1763774726163,0.0046,2777.4,2777.3,0.405504]
[1763774726364,0.0046,2777.4,2776.8,0.4966]
[1763774726563,0.0046,2777.4,2776.7,0.90699264]
[1763774726564,0.4576,2777.3,2776.7,0.90699264]
[1763774726874,0.4576,2777.3,2776.8,0.64944887]
[1763774727062,0.4576,2777.3,2776.9,0.405504]
[1763774728210,0.647,2777.9,2777.3,0.405504]
[1763774728977,0.1894,2777.9,2777.3,0.902104]
[1763774729281,0.1894,2777.9,2777.3,1.10165366]
[1763774730276,0.1894,2777.9,2777.3,0.60505366]
[1763774730601,0.279,2777.4,2776.7,1.58999264]
[1763774730799,0.6452,2777.9,2776.7,1.09339264]
[1763774730991,0.4576,2777.8,2776.9,0.93811537]
[1763774731392,0.4576,2777.8,2777.1,0.405504]
[1763774732201,0.1894,2777.9,2777.1,0.405504]
[1763774732376,0.1894,2777.9,2777.3,0.405504]
[1763774732769,0.1894,2777.9,2777.2,0.405504]
[1763774732964,0.647,2777.9,2777.2,0.405504]
[1763774734210,0.647,2777.9,2777.2,0.902104]
[1763774734906,0.647,2777.9,2777.2,1.00480401]
[1763774735203,0.4875,2778.3,2777.8,0.4577]
[1763774735505,0.002,2778.3,2778.2,1.060704]
[1763774735806,0.002,2778.3,2777.5,0.90699264]
[1763774736009,0.002,2778.3,2777.4,0.1919]
[1763774736010,0.2921,2777.9,2777.4,0.1919]
[1763774736304,0.9243,2777.9,2777.5,0.405504]
[1763774736467,0.9243,2777.9,2777.2,0.597404]
[1763774736671,0.4464,2777.8,2777.4,0.405504]
[1763774736867,0.4464,2777.8,2776.9,0.497]
[1763774736868,0.4464,2777.8,2776.6,5.09089606]
[1763774737195,0.0045,2777.2,2776.6,5.09089606]
[1763774737394,0.0045,2777.2,2776.5,0.1919]
[1763774737583,0.4528,2777.1,2776.2,6.06579606]
[1763774737902,0.4528,2777.1,2776.3,0.62517961]
[1763774738104,0.4528,2777.1,2775.9,0.498]
[1763774738105,0.4528,2777.1,2775.9,0.001]
[1763774738290,0.4528,2777.1,2776.2,0.44152445]
[1763774738611,0.4528,2777.1,2776.2,0.53302045]
[1763774738772,0.4528,2777.1,2776.3,0.405504]
[1763774738967,0.4528,2777.1,2776.2,0.53302045]
[1763774739168,0.4528,2777.5,2776.5,5.09089606]
[1763774739387,0.4528,2777.5,2776.7,0.405504]
[1763774740217,0.4528,2777.5,2776.7,0.902504]
[1763774740374,0.1858,2777.9,2776.9,0.405504]
[1763774740711,0.4528,2777.5,2776.7,0.405504]
[1763774740921,0.1858,2777.9,2776.9,5.09089606]
[1763774741076,0.1858,2777.9,2777.4,0.4633]
[1763774741270,0.1858,2777.9,2777.5,0.405504]
[1763774741471,0.6386,2777.9,2777.2,0.405504]
[1763774741675,0.1858,2777.9,2777.2,0.405504]
[1763774742001,0.1858,2777.9,2777.2,0.902504]
[1763774743320,0.1858,2777.9,2777.1,0.1919]
[1763774743321,0.002,2778.3,2777.8,0.4633]
[1763774744031,0.002,2778.3,2777.9,0.902504]
[1763774744526,0.002,2778.3,2777.9,0.405504]
[1763774744913,0.002,2778.3,2777.9,0.54964001]
[1763774745113,0.485,2778.0,2777.5,0.405504]
[1763774745343,0.2555,2778.2,2777.5,0.405504]
[1763774745831,0.002,2778.3,2777.5,0.902504]
[1763774745987,0.002,2778.3,2777.7,0.405504]
[1763774746188,0.4548,2778.3,2777.7,0.405504]
[1763774746387,0.4548,2778.3,2777.5,0.902504]
[1763774746721,0.4548,2778.3,2777.7,0.405504]
[1763774747618,0.002,2778.3,2777.7,0.902504]
[1763774747831,0.4548,2778.3,2777.7,0.405504]
[1763774750334,0.4548,2778.3,2777.6,0.18094966]
[1763774750532,0.2874,2777.7,2777.2,3.81]
[1763774750770,0.2874,2777.7,2777.3,0.40019]
[1763774751036,0.7385,2777.7,2777.3,0.40019]